Cogmind - Beta 14 @@@ ROGUE MODE // 2025.03.04 @ 19:49:24 Player: TryingToLearn Result: Destroyed by G-67 Veteran with Plasma Rifle Performance ------------- Evolutions (6) 3000 Regions Visited (15) 3000 Robots Destroyed (124) 620 Value Destroyed (5034) 5034 Prototype IDs (10) 200 Alien Tech Used (0) 0 Bonus (480) 480 TOTAL SCORE: 12334 Bonus ------- Follower Combat Kills 180 Aligned with FarCom 300 Cogmind --------- Core Integrity 0/1150 Matter 85/300 Energy 25/100 System Corruption 7% Temperature Cool (12) Movement Core (100) Ox1 Location -4/Factory Parts ------- > --- POWER (2) -------- (None) > --- PROPULSION (5) --- (None) > --- UTILITY (8) ------ Improved Focal Shield Improved Focal Shield > --- WEAPON (4) ------- (None) > --- INVENTORY (5) ---- Improved Melee Analysis Suite Peak State ------------ > --- POWER ------------ Micro Fission Core Quantum Reactor > --- PROPULSION ------- Medium Armored Exoskeleton Armored Huge Wheel > --- UTILITY ---------- Advanced Heat Sink Large Storage Unit Improved Particle Charger Hardened Medium Armor Plating Centrium Medium Armor Plating Centrium Medium Armor Plating Improved Field Recycling Unit Sensor Drone Bay > --- WEAPON ----------- Advanced Variable Charge Gun Railgun Advanced KE Penetrator Enhanced Gauss Cannon > --- INVENTORY -------- Antimatter Reactor Centrium Heavy Treads Carbon-fiber Leg Advanced Heat Sink Improved Melee Analysis Suite Core Analyzer Makeshift ECM Suite Centrium Medium Armor Plating Improved Thermal Shield Improved Thermal Shield Point Defense System Advanced Plasma Rifle Advanced Variable Charge Gun Heavy Gauss Cannon [Rating: 123] Favorites ----------- Power Light Nuclear Core Engine Deuterium Engine Power Core Light Nuclear Core Reactor Quantum Reactor Propulsion Aluminum Leg Treads Armored Treads Leg Aluminum Leg Wheel Compact Wheel Utility Large Storage Unit Device Sensor Drone Bay Storage Large Storage Unit Processor Melee Analysis Suite Protection Light Armor Plating Weapon Heavy Assault Rifle Energy Gun Advanced Variable Charge Gun Energy Cannon Advanced Beam Cannon Ballistic Gun Heavy Assault Rifle Ballistic Cannon Advanced Assault Cannon Launcher Smartbomb Launcher Special Weapon Welding Torch Slashing Weapon Longsword +1 Build | -11 -10 -10 -9 -9 -9 -8 -8 -7 -6 -6 -6 -5 -5 -5 -4 ------- Run | Yrd Mat Min Mat Min Exi Min Mat Fac Fac Low Low Fac Ext Cet Fac Slots Evolved 12 | . . . 2 . . . 2 2 2 . . 2 . . 2 Power 1 | . . . . . . . . . 1 . . . . . . Propulsion 3 | . . . 1 . . . 1 . . . . . . . 1 Utility 6 | . . . . . . . 1 2 1 . . 1 . . 1 Weapon 2 | . . . 1 . . . . . . . . 1 . . . Parts Attached 165 | 6 11 3 11 . 1 . 20 2 12 17 3 17 17 8 37 Power 28 | 1 . 1 . . . . 2 . 4 4 1 5 3 2 5 Engine 8 | 1 . . . . . . 1 . 1 1 . 2 1 1 . Core 16 | . . 1 . . . . 1 . 3 3 1 3 2 . 2 Reactor 4 | . . . . . . . . . . . . . . 1 3 Propulsion 42 | 2 5 1 7 . . . 7 . 2 4 1 1 5 1 6 Treads 11 | . . . 1 . . . 5 . 2 2 . . . . 1 Leg 22 | . 5 1 6 . . . 2 . . . . . 3 1 4 Wheel 9 | 2 . . . . . . . . . 2 1 1 2 . 1 Hover . | . . . . . . . . . . . . . . . . Flight . | . . . . . . . . . . . . . . . . Utility 57 | 1 3 . 1 . 1 . 5 2 5 5 1 6 5 2 20 Device 30 | . . . . . . . 2 1 2 2 . 4 4 1 14 Storage 4 | 1 1 . . . . . . . . 1 . 1 . . . Processor 5 | . . . . . . . . . 1 1 . 1 . . 2 Hackware . | . . . . . . . . . . . . . . . . Protection 18 | . 2 . 1 . 1 . 3 1 2 1 1 . 1 1 4 Artifact . | . . . . . . . . . . . . . . . . Weapon 38 | 2 3 1 3 . . . 6 . 1 4 . 5 4 3 6 Energy Gun 5 | . . . . . . . . . . . . . 1 2 2 Energy Cannon 3 | . . . 1 . . . . . . . . 1 1 . . Ballistic Gun 22 | 2 2 1 2 . . . 3 . . 4 . 3 1 1 3 Ballistic Cannon 5 | . . . . . . . 2 . 1 . . . 1 . 1 Launcher 1 | . . . . . . . . . . . . 1 . . . Special Weapon 1 | . 1 . . . . . . . . . . . . . . Impact Weapon . | . . . . . . . . . . . . . . . . Slashing Weapon 1 | . . . . . . . 1 . . . . . . . . Piercing Weapon . | . . . . . . . . . . . . . . . . Special Melee Weapon . | . . . . . . . . . . . . . . . . Unidentified Prototypes 10 | . . . 1 . . . 3 . . . . 1 . 3 2 Corrupted Parts 1 | . . . . . . . . . . . 1 . . . . System Corruption 1 | . . . . . . . . . . . 1 . . . . Parts Lost 75 | . 1 . . . . . 2 . 6 16 . 8 12 3 27 Power 16 | . . . . . . . . . 2 4 . 2 2 1 5 Propulsion 19 | . 1 . . . . . 1 . 1 5 . 1 4 1 5 Utility 24 | . . . . . . . 1 . 2 4 . 3 3 1 10 Weapon 16 | . . . . . . . . . 1 3 . 2 3 . 7 Highest Loss Streak 15 | . 1 . . . . . 1 . 4 15 . 3 12 3 15 To Critical Strikes 2 | . . . . . . . . . . 1 . . . 1 . Average Slot Usage (%) 91 | . 98 100 96 100 100 100 95 90 93 89 93 89 73 85 75 Engine 2 | . 14 . . . . . 2 7 5 5 1 3 . 1 . Core 7 | . . 13 11 11 11 11 6 . 5 6 11 6 8 5 4 Treads 5 | . . . . . . . 9 30 25 7 6 . . . . Leg 14 | . 13 28 31 33 33 33 25 . . . . . 2 11 7 Wheel 4 | . 14 . . . . . . . . 11 13 16 11 . 1 Device 8 | . . . . . . . 2 6 7 12 17 16 20 22 21 Storage 9 | . 14 14 11 11 11 11 9 7 6 12 13 10 5 5 4 Processor 3 | . . . . . . . . . 6 11 6 9 8 5 2 Protection 8 | . 13 14 11 11 11 11 12 14 12 . 2 1 . 4 7 Energy Gun 1 | . . . . . . . . . . . . . . 9 5 Energy Cannon 2 | . . . 1 11 11 11 . . . . . 2 2 . . Ballistic Gun 15 | . 27 28 29 22 22 22 20 . . 17 20 13 2 4 7 Ballistic Cannon 2 | . . . . . . . 1 15 12 . . . . 5 4 Slashing Weapon 1 | . . . . . . . 5 7 6 . . . . . . Peak Build Rating 123 | 6 8 14 18 18 19 19 45 56 64 64 63 80 88 114 123 Average Rating 50 | 4 7 13 17 17 18 19 30 55 62 59 61 72 65 103 106 On Entrance 41 | . 6 8 14 18 18 19 19 45 56 60 63 60 80 88 114 Naked Turns 57 | . . . . . . . . . . . . . . . 57 Heaviest Build 124 | 12 30 33 38 38 38 38 64 73 78 70 70 83 83 101 124 Greatest Support 100 | 20 20 20 30 30 30 30 80 80 80 80 56 60 65 65 100 Greatest Overweight (x) 4 | . 1 1 1 1 1 1 2 . 1 3 1 1 2 1 4 Average Overweight (x) . | . . 1 1 1 1 1 . . . . 1 1 . 1 1 Largest Inventory Capacity 15 | 8 15 15 15 15 15 15 15 15 15 15 15 15 15 15 15 Average Capacity 14 | 6 11 15 15 15 15 15 15 15 15 15 15 15 15 15 14 Most Carried 15 | 6 15 15 15 15 15 15 15 15 15 15 15 15 15 15 15 Average Carried 13 | 3 9 14 14 14 14 15 14 13 14 11 14 14 13 12 13 Final Capacity 15 | 8 15 15 15 15 15 15 15 15 15 15 15 15 15 15 5 Final Carried 15 | 6 15 15 15 15 15 15 14 15 15 15 15 14 11 15 1 Class Distribution -------------------- 38% | Scavenger-Tank 17% | Mutant 13% | Scavenger-Skirmisher 13% | Assassin 10% | Scavenger-Gunner Dominant Class ---------------- Mutant | -10/Materials Mutant | -10/Mines Scavenger-Tank | -9/Materials Scavenger-Tank | -9/Mines Scavenger-Tank | -9/Exiles Scavenger-Skirmisher | -8/Mines Scavenger-Tank | -8/Materials Assassin | -7/Factory Assassin | -6/Factory Scavenger-Gunner | -6/Lower Caves Scavenger-Gunner | -6/Lower Caves Scavenger-Skirmisher | -5/Factory Scavenger-Skirmisher | -5/Extension Scavenger-Tank | -5/Cetus Scavenger-Tank | -4/Factory Resources | -11 -10 -10 -9 -9 -9 -8 -8 -7 -6 -6 -6 -5 -5 -5 -4 ----------- Run | Yrd Mat Min Mat Min Exi Min Mat Fac Fac Low Low Fac Ext Cet Fac Matter Collected 3865 | 260 320 143 263 . . 10 424 . 314 598 10 617 5 293 608 Remotely . | . . . . . . . . . . . . . . . . Salvage Created 4994 | . 333 101 350 . . . 857 . 704 495 . 943 . 188 1023 Parts 263 | . 17 4 26 . . . 52 . 38 8 . 51 . 6 61 Haulers Intercepted 4 | . . . 1 . . . . . . . . 2 . . 1 Recyclers Shooed 2 | . . . . . . . 2 . . . . . . . . Parts Field Recycled 20 | . . . . . . . . . . . . . . . 20 Retrieved Matter 189 | . . . . . . . . . . . . . . . 189 Parts Self-Destructed 9 | . . . . . . . . . . 9 . . . . . Prevented . | . . . . . . . . . . . . . . . . Kills | -11 -10 -10 -9 -9 -9 -8 -8 -7 -6 -6 -6 -5 -5 -5 -4 ------- Run | Yrd Mat Min Mat Min Exi Min Mat Fac Fac Low Low Fac Ext Cet Fac Combat Hostiles Destroyed 97 | . 8 2 6 . . . 19 . 13 10 . 15 . 3 21 Melee 24 | . . . . . . . 10 . 10 4 . . . . . Guns 48 | . 8 2 6 . . . 9 . . 5 . 7 . . 11 Cannons 13 | . . . . . . . . . 3 1 . 1 . 2 6 AOE 11 | . . . . . . . . . . . . 7 . . 4 Classes Destroyed 15 | . 1 . 6 . . . 1 . 4 . . 3 . . . Worker 6 | . . . . . . . . . . . . 3 . . 3 Builder 5 | . . . 2 . . . . . . . . 2 . . 1 Tunneler 2 | . . . . . . . . . . . . 1 . . 1 Hauler 4 | . . . 1 . . . . . . . . 2 . . 1 Recycler 2 | . . . 1 . . . . . . . . 1 . . . Mechanic 2 | . . . . . . . . . 1 . . 1 . . . Operator 1 | . . . . . . . . . . . . 1 . . . Watcher 5 | . . . 1 . . . 1 . . . . 2 . 1 . Swarmer 24 | . . . 2 . . . 4 . . 2 . 7 . . 9 Grunt 36 | . 8 2 2 . . . 10 . 6 5 . 3 . . . Duelist 2 | . . . . . . . 1 . . 1 . . . . . Sentry 12 | . . . 2 . . . 4 . 1 2 . 1 . . 2 Specialist 2 | . . . . . . . . . 2 . . . . . . Hunter 3 | . . . . . . . . . 1 . . . . . 2 Programmer 15 | . . . . . . . . . 3 . . 4 . . 8 Cetus Guard 3 | . . . . . . . . . . . . . . 3 . Best Kill Streak 14 | . 4 2 3 . . . 6 . 5 3 . 14 . 2 7 Combat Bots Only 7 | . 4 2 2 . . . 6 . 4 3 . 7 . 2 5 Max Kills in Single Turn 8 | . 1 1 2 . . . 1 . 1 1 . 8 . 1 3 Gunslinging . | . . . . . . . . . . . . . . . . Exploded 3 | . . . . . . . . . . . . 3 . . 3 Melee 1 | . . . . . . . 1 . 1 1 . . . . . Uniques/NPCs Destroyed . | . . . . . . . . . . . . . . . . Combat | -11 -10 -10 -9 -9 -9 -8 -8 -7 -6 -6 -6 -5 -5 -5 -4 -------- Run | Yrd Mat Min Mat Min Exi Min Mat Fac Fac Low Low Fac Ext Cet Fac Hostile Shots Fired 1339 | . 38 3 24 . . . 100 . 255 188 . 76 108 61 486 Missed 364 | . 5 1 9 . . . 25 . 53 40 . 15 38 20 158 Damage Taken 16410 | . 407 47 205 . . . 956 . 2419 2521 . 1363 1236 814 6442 Core 2479 | . 67 . 33 . . . 47 . 136 322 . 213 423 79 1159 Absorbed by Shields 231 | . . . . . . . . . . . . . . . 231 Redirected to Shielding 153 | . . . . . . . 50 . . . . . . 103 . Ignored by Resistances 1072 | . . . . . . . . . 85 198 . . 266 295 228 Core Remaining (%) 75 | 100 . 73 . . . 91 91 100 . . 46 . . 28 . Volleys Fired 220 | . 27 4 18 . . . 27 . 16 32 . 39 . 12 45 Largest 4 | . 2 2 3 . . . 3 . 2 3 . 4 . 4 4 Hottest 237 | . 40 45 71 . . . 69 . 96 96 . 123 . 237 211 Shots Fired 600 | . 52 8 44 . . . 79 . 32 70 . 108 . 49 158 Gun 455 | . 50 8 44 . . . 79 . . 45 . 90 . 25 114 Cannon 137 | . . . . . . . . . 32 25 . 12 . 24 44 Launcher 6 | . . . . . . . . . . . . 6 . . . Special 2 | . 2 . . . . . . . . . . . . . . Kinetic 519 | . 50 8 44 . . . 79 . 32 70 . 90 . 25 121 Thermal 64 | . 2 . . . . . . . . . . 12 . 13 37 Explosive 6 | . . . . . . . . . . . . 6 . . . Electromagnetic 11 | . . . . . . . . . . . . . . 11 . Robot Hit Streak 14 | . 10 7 7 . . . 7 . 8 14 . 7 . 7 12 Robot Miss Streak 8 | . 5 2 3 . . . 8 . 3 3 . 5 . 3 6 Penetration Max 2 | . . . . . . . . . . . . 1 . 1 2 Secondary Targets 5 | . 1 . . . . . 2 . . . . 2 . . . Max Gunslinging Chain 1 | . 1 . . . . . 1 . . . . 1 . . . Shots Hit Robots 416 | . 32 5 26 . . . 72 . 55 55 . 66 . 29 76 Core Hits 223 | . 17 3 14 . . . 28 . 22 19 . 60 . 12 48 Critical Kills 4 | . . 1 . . . . . . . 1 . . . 1 1 Critical Parts Destroyed 8 | . . . . . . . . . . 1 . 3 . . 4 Critical Strikes 28 | . . 1 . . . . 4 . 3 5 . 3 . 3 9 Meltdown 1 | . . . . . . . . . . . . . . 1 . Destroy 11 | . . 1 . . . . . . . 2 . 3 . . 5 Blast 8 | . . . . . . . . . 1 1 . . . 2 4 Sever 8 | . . . . . . . 4 . 2 2 . . . . . Melee Attacks 95 | . . . . . . . 35 1 49 10 . . . . . Impact . | . . . . . . . . . . . . . . . . Slashing 95 | . . . . . . . 35 1 49 10 . . . . . Piercing . | . . . . . . . . . . . . . . . . Sneak Attacks 4 | . . . . . . . 3 . 1 . . . . . . Combat Hostiles 2 | . . . . . . . 2 . . . . . . . . Follow-up Attacks . | . . . . . . . . . . . . . . . . Damage Inflicted 13532 | . 413 63 468 . . . 2167 . 2227 1497 . 2663 . 868 3166 Guns 5932 | . 413 63 468 . . . 620 . . 579 . 1416 . 295 2078 Cannons 2685 | . . . . . . . . . 624 448 . 279 . 573 761 Explosions 1240 | . . . . . . . . . . . . 968 . . 272 Melee 3613 | . . . . . . . 1547 . 1603 463 . . . . . Ramming 62 | . . . . . . . . . . 7 . . . . 55 Kinetic 7216 | . 413 63 468 . . . 620 . 624 1027 . 1416 . 499 2086 Thermal 1448 | . . . . . . . . . . . . 279 . 306 863 Explosive 1010 | . . . . . . . . . . . . 968 . . 42 Electromagnetic 183 | . . . . . . . . . . . . . . 63 120 Impact . | . . . . . . . . . . . . . . . . Slashing 3613 | . . . . . . . 1547 . 1603 463 . . . . . Piercing . | . . . . . . . . . . . . . . . . Highest Corruption 8 | . 1 1 . . . . . . 4 4 5 8 8 8 7 Average Corruption 4 | . 1 1 . . . . . . 3 4 4 7 8 8 5 Corruption Purged . | . . . . . . . . . . . . . . . . Corruption Blocked 7 | . . . . . . . . . . . . 6 . 1 . Effects 114 | . 2 6 . . . . . . 13 36 1 24 15 15 2 Message Errors 24 | . 1 2 . . . . . . 2 8 . 5 2 3 1 Matter Fused 30 | . . 1 . . . . . . 4 12 . 5 4 3 1 Heat Flow Errors 11 | . . 1 . . . . . . 1 3 . 2 1 3 . Energy Discharges 14 | . 1 1 . . . . . . 2 4 . 3 1 2 . Parts Rejected 4 | . . . . . . . . . 1 1 . 1 1 . . Parts Fused 2 | . . . . . . . . . 1 1 . . . . . Data Loss (minor) 14 | . . 1 . . . . . . . 3 1 3 4 2 . Data Loss (major) 6 | . . . . . . . . . 1 1 . 3 1 . . Misfires 3 | . . . . . . . . . . 1 . . . 2 . Alerts 3 | . . . . . . . . . 1 . . 1 1 . . Weapon Failures 3 | . . . . . . . . . . 2 . 1 . . . Overload Shots . | . . . . . . . . . . . . . . . . Overflow Damage 401 | . . . . . . . 100 . 116 58 . 113 . . 14 Projectiles 86 | . . . . . . . . . 23 19 . 30 . . 14 Explosions 83 | . . . . . . . . . . . . 83 . . . Melee 232 | . . . . . . . 100 . 93 39 . . . . . Knockbacks 25 | . . . . . . . . . 14 4 . . . . 7 Impact . | . . . . . . . . . . . . . . . . Kinetic 20 | . . . . . . . . . 10 4 . . . . 6 Secondary 5 | . . . . . . . . . 4 . . . . . 1 Self-Inflicted Damage 183 | . . . . . . . . . . . . . . . 183 Shots 5 | . . . . . . . . . . . . . . . 5 Rammed 14 | . . . . . . . . . . 8 . . . . 6 Targets Rammed 15 | . . . . . . . 1 . . 8 . . . . 6 Kicked 1 | . . . . . . . 1 . . . . . . . . Crushed . | . . . . . . . . . . . . . . . . Highest Temperature 672 | . 48 259 24 . . . 88 . 441 672 . 198 144 417 644 Average Temperature 142 | . 15 117 10 . . . 26 . 169 232 . 55 69 156 166 Received Heat Transfer 4175 | . 225 24 57 . . . 396 . 684 957 . 195 684 27 926 Effects 56 | . . . . . . . . . 10 19 . . . 3 24 Shutdowns 13 | . . . . . . . . . 1 7 . . . 1 4 Energy Bleed 3 | . . . . . . . . . 1 2 . . . . . Interference 17 | . . . . . . . . . 4 6 . . . 2 5 Matter Decay 2 | . . . . . . . . . . 1 . . . . 1 Short Circuit 2 | . . . . . . . . . . 1 . . . . 1 Damage (minor) 4 | . . . . . . . . . . 2 . . . . 2 Damage (major) 15 | . . . . . . . . . 4 . . . . . 11 Siege Activations . | . . . . . . . . . . . . . . . . Robots Corrupted . | . . . . . . . . . . . . . . . . Combat Hostiles . | . . . . . . . . . . . . . . . . Parts Fried . | . . . . . . . . . . . . . . . . Impact Corruptions . | . . . . . . . . . . . . . . . . Robots Melted 1 | . . . . . . . . . . . . . . 1 . Combat Hostiles 1 | . . . . . . . . . . . . . . 1 . Parts Melted 1 | . . . . . . . . . . . . . . 1 . Heat Transferred 1580 | . . . . . . . . . . . . 333 . 407 840 Parts Sabotaged . | . . . . . . . . . . . . . . . . Parts Stolen . | . . . . . . . . . . . . . . . . Parts Stripped . | . . . . . . . . . . . . . . . . Power Chain Reactions 1 | . . . . . . . . . . . . . . . 1 Alert | -11 -10 -10 -9 -9 -9 -8 -8 -7 -6 -6 -6 -5 -5 -5 -4 ------- Run | Yrd Mat Min Mat Min Exi Min Mat Fac Fac Low Low Fac Ext Cet Fac Peak Influence 382 | . 121 112 274 48 . . 349 137 278 . . 308 132 78 382 Initial 132 | . . 37 43 48 . . . 121 66 . . 27 132 8 . Average 112 | . 30 48 155 22 . . 171 125 94 . . 135 86 35 165 Maximum Alert Level 1 | . . . 1 . . . 1 . 1 . . 1 . . 1 Low Security (%) 76 | 100 100 100 76 100 . 100 49 100 75 . . 59 100 100 66 Level 1 23 | . . . 23 . . . 50 . 24 . . 40 . . 33 Level 2 . | . . . . . . . . . . . . . . . . Level 3 . | . . . . . . . . . . . . . . . . Level 4 . | . . . . . . . . . . . . . . . . Level 5 . | . . . . . . . . . . . . . . . . High Security . | . . . . . . . . . . . . . . . . Max Security . | . . . . . . . . . . . . . . . . Squads Dispatched 19 | . . 1 . . . . 4 . 5 . . 3 . . 6 Investigation 1 | . . 1 . . . . . . . . . . . . . Extermination 8 | . . . . . . . . . 2 . . 2 . . 4 Reinforcement 7 | . . . . . . . 1 . 3 . . 1 . . 2 Assault . | . . . . . . . . . . . . . . . . Garrison 3 | . . . . . . . 3 . . . . . . . . Intercept . | . . . . . . . . . . . . . . . . Searches Triggered . | . . . . . . . . . . . . . . . . Construction Impeded 3 | . . . . . . . . . 1 . . 1 . . 1 Haulers Reinforced . | . . . . . . . . . . . . . . . . Active Scanning Responses . | . . . . . . . . . . . . . . . . Cargo Convoy Interrupts . | . . . . . . . . . . . . . . . . Stealth | -11 -10 -10 -9 -9 -9 -8 -8 -7 -6 -6 -6 -5 -5 -5 -4 --------- Run | Yrd Mat Min Mat Min Exi Min Mat Fac Fac Low Low Fac Ext Cet Fac Distress Signals 13 | . . . 2 . . . 3 . . . . 3 1 1 3 Communications Jammed . | . . . . . . . . . . . . . . . . Distress Signals . | . . . . . . . . . . . . . . . . Times Spotted 193 | . 14 4 14 1 . . 32 1 23 21 . 13 7 5 58 Peak Tracking Total 14 | . 5 2 3 2 . . 7 1 8 7 . 5 6 5 14 Tactical Retreats 24 | . . . . 1 . . 3 . 3 4 . 2 3 . 8 Traps | -11 -10 -10 -9 -9 -9 -8 -8 -7 -6 -6 -6 -5 -5 -5 -4 ------- Run | Yrd Mat Min Mat Min Exi Min Mat Fac Fac Low Low Fac Ext Cet Fac Traps Triggered 3 | . 1 . . . . . . . . . . 1 . . 1 Indirectly . | . . . . . . . . . . . . . . . . Trap Hack Attempts . | . . . . . . . . . . . . . . . . Triggered . | . . . . . . . . . . . . . . . . Disarmed . | . . . . . . . . . . . . . . . . Reprogrammed . | . . . . . . . . . . . . . . . . Reused . | . . . . . . . . . . . . . . . . Traps Extracted . | . . . . . . . . . . . . . . . . Installed . | . . . . . . . . . . . . . . . . Triggered . | . . . . . . . . . . . . . . . . Machines | -11 -10 -10 -9 -9 -9 -8 -8 -7 -6 -6 -6 -5 -5 -5 -4 ---------- Run | Yrd Mat Min Mat Min Exi Min Mat Fac Fac Low Low Fac Ext Cet Fac Machines Disabled 11 | . . . . . . . . . . 1 . 2 . 1 7 Max in Single Turn 2 | . . . . . . . . . . 1 . 1 . 1 2 Machines Repaired . | . . . . . . . . . . . . . . . . Machines Dismantled . | . . . . . . . . . . . . . . . . Machines Sabotaged . | . . . . . . . . . . . . . . . . Overloaded Fab Kills . | . . . . . . . . . . . . . . . . Hacking | -11 -10 -10 -9 -9 -9 -8 -8 -7 -6 -6 -6 -5 -5 -5 -4 --------- Run | Yrd Mat Min Mat Min Exi Min Mat Fac Fac Low Low Fac Ext Cet Fac Machines Accessed 17 | . . 2 2 . 4 . 1 1 1 2 . . . 3 1 Terminals 8 | . . . 2 . . . 1 1 . 1 . . . 3 . Fabricators 1 | . . . . . . . . . . . . . . . 1 Repair Stations . | . . . . . . . . . . . . . . . . Recycling Units . | . . . . . . . . . . . . . . . . Scanalyzers . | . . . . . . . . . . . . . . . . Garrison Access 1 | . . . . . . . . . 1 . . . . . . Total Hacks 63 | . . 2 3 . 43 . 1 1 1 4 . . . 7 1 Successful 54 | . . 2 . . 43 . 1 . . 4 . . . 4 . Failed 9 | . . . 3 . . . . 1 1 . . . . 3 1 Catastrophic 3 | . . . . . . . . 1 1 . . . . 1 . Database Lockouts . | . . . . . . . . . . . . . . . . Manual 4 | . . . . . 1 . 1 1 . . . . . 1 . Terminals 15 | . . . 3 . . . 1 1 . 3 . . . 7 . Fabricators 1 | . . . . . . . . . . . . . . . 1 Repair Stations . | . . . . . . . . . . . . . . . . Recycling Units . | . . . . . . . . . . . . . . . . Scanalyzers . | . . . . . . . . . . . . . . . . Garrison Access 1 | . . . . . . . . . 1 . . . . . . Terminal Hacks 53 | . . 2 . . 43 . . . . 4 . . . 4 . Record 51 | . . . . . 43 . . . . 4 . . . 4 . Open Door 2 | . . 2 . . . . . . . . . . . . . Fabricator Hacks . | . . . . . . . . . . . . . . . . Repair Station Hacks . | . . . . . . . . . . . . . . . . Recycling Unit Hacks . | . . . . . . . . . . . . . . . . Scanalyzer . | . . . . . . . . . . . . . . . . Garrison Access Hacks . | . . . . . . . . . . . . . . . . Unauthorized Hacks 1 | . . . . . . . 1 . . . . . . . . Terminals 1 | . . . . . . . 1 . . . . . . . . Assimilate 1 | . . . . . . . 1 . . . . . . . . Fabricators . | . . . . . . . . . . . . . . . . Repair Stations . | . . . . . . . . . . . . . . . . Recycling Units . | . . . . . . . . . . . . . . . . Scanalyzers . | . . . . . . . . . . . . . . . . Garrison Access . | . . . . . . . . . . . . . . . . Data Cores Recovered 1 | . . . . . . . . . . . . 1 . . . Used . | . . . . . . . . . . . . . . . . Hacking Detections 9 | . . . 2 . . . 1 1 1 1 . . . 2 1 Full Trace Events . | . . . . . . . . . . . . . . . . Feedback Events . | . . . . . . . . . . . . . . . . Feedback Blocked . | . . . . . . . . . . . . . . . . Robot Schematics Acquired . | . . . . . . . . . . . . . . . . Robots Built . | . . . . . . . . . . . . . . . . Authchips . | . . . . . . . . . . . . . . . . Time . | . . . . . . . . . . . . . . . . Total Robot Build Rating . | . . . . . . . . . . . . . . . . Part Schematics Acquired . | . . . . . . . . . . . . . . . . Parts Built . | . . . . . . . . . . . . . . . . Authchips . | . . . . . . . . . . . . . . . . Time . | . . . . . . . . . . . . . . . . Total Part Build Rating . | . . . . . . . . . . . . . . . . Parts Repaired . | . . . . . . . . . . . . . . . . Time . | . . . . . . . . . . . . . . . . Parts Recycled . | . . . . . . . . . . . . . . . . Recycled Matter . | . . . . . . . . . . . . . . . . Retrieved Matter . | . . . . . . . . . . . . . . . . Retrieved Components . | . . . . . . . . . . . . . . . . Parts Scanalyzed . | . . . . . . . . . . . . . . . . Part Schematics Acquired . | . . . . . . . . . . . . . . . . Parts Damaged . | . . . . . . . . . . . . . . . . Bothacking | -11 -10 -10 -9 -9 -9 -8 -8 -7 -6 -6 -6 -5 -5 -5 -4 ------------ Run | Yrd Mat Min Mat Min Exi Min Mat Fac Fac Low Low Fac Ext Cet Fac Used RIF Installer . | . . . . . . . . . . . . . . . . Robots Hacked . | . . . . . . . . . . . . . . . . Non-combat . | . . . . . . . . . . . . . . . . Combat . | . . . . . . . . . . . . . . . . Robot Hacks Applied . | . . . . . . . . . . . . . . . . Relay Couplers Released 4 | . . . . . . . . . . . . . . . 4 Programmers 4 | . . . . . . . . . . . . . . . 4 Fabnet Peak Effective % . | . . . . . . . . . . . . . . . . Robots Rewired . | . . . . . . . . . . . . . . . . Allies Hacked . | . . . . . . . . . . . . . . . . Hacks Repelled . | . . . . . . . . . . . . . . . . Allies | -11 -10 -10 -9 -9 -9 -8 -8 -7 -6 -6 -6 -5 -5 -5 -4 -------- Run | Yrd Mat Min Mat Min Exi Min Mat Fac Fac Low Low Fac Ext Cet Fac Total Allies 6 | . . 5 . . . . 1 . . . . . . . . Largest Group 5 | . . 5 5 5 . . 1 . . . . . . . . Highest-Rated Group 81 | . . 81 81 81 . . 10 . . . . . . . . Highest-Rated Ally 31 | . . 31 31 31 . . 10 . . . . . . . . Total Orders 20 | . . . . . . . . . . 12 3 3 . . 2 ROAM 2 | . . . . . . . . . . 2 . . . . . EXPLORE 15 | . . . . . . . . . . 9 2 2 . . 2 RETURN 3 | . . . . . . . . . . 1 1 1 . . . Ally Attacks 46 | . . 10 31 5 . . . . . . . . . . . Total Damage 597 | . . 209 353 35 . . . . . . . . . . . Kills 9 | . . 2 7 . . . . . . . . . . . . Allies Corrupted . | . . . . . . . . . . . . . . . . Allies Melted . | . . . . . . . . . . . . . . . . Intel | -11 -10 -10 -9 -9 -9 -8 -8 -7 -6 -6 -6 -5 -5 -5 -4 ------- Run | Yrd Mat Min Mat Min Exi Min Mat Fac Fac Low Low Fac Ext Cet Fac Robot Analysis Total . | . . . . . . . . . . . . . . . . Derelict Logs Recovered 2 | . . 1 . . . . . . . 1 . . . . . Drone Launches 20 | . . . . . . . . . . 10 3 3 . . 4 Drone Recoveries 12 | . . . . . . . . . . 8 1 1 . . 2 Exploration | -11 -10 -10 -9 -9 -9 -8 -8 -7 -6 -6 -6 -5 -5 -5 -4 ------------- Run | Yrd Mat Min Mat Min Exi Min Mat Fac Fac Low Low Fac Ext Cet Fac Turns Passed 13592 | 57 573 632 849 219 2074 386 1405 270 1540 1497 94 1177 517 567 1735 Spaces Moved 7153 | 52 369 308 396 107 1090 204 653 151 691 964 56 655 361 231 865 Core 121 | 1 . . . . . . . . . . . . . . 120 Treads 1161 | . . . . . . . 204 151 691 45 . . . . 70 Legs 3348 | . 95 308 396 107 1090 204 449 . . . . . 72 231 396 Wheels 2523 | 51 274 . . . . . . . . 919 56 655 289 . 279 Hover . | . . . . . . . . . . . . . . . . Flight . | . . . . . . . . . . . . . . . . Fastest Speed 50 | 50 80 190 190 190 190 190 120 170 170 115 111 111 90 220 50 Average Speed 154 | 79 106 190 190 190 190 190 137 170 170 118 114 113 119 220 165 Slowest Speed 385 | 80 190 190 190 190 190 190 330 170 250 385 115 115 220 250 260 Overloaded Moves . | . . . . . . . . . . . . . . . . Propulsion Burnouts . | . . . . . . . . . . . . . . . . Robots Hopped . | . . . . . . . . . . . . . . . . Cave-ins Triggered . | . . . . . . . . . . . . . . . . Exploration Rate (%) 38 | 3 48 53 39 24 93 54 38 8 11 98 17 15 44 58 18 Regions Visited 15 Branch Regions 8 Pre-discovered Areas 1 | . . . . . 1 . . . . . . . . . . Known Exits Taken 1 | . . . . . . . . . . 1 . . . . . Unknown Exits Taken 14 | 1 1 1 1 1 1 1 1 1 1 . 1 1 1 1 . Scrap Searched 7 | . . . . . . . . . . 5 2 . . . . Spaces Dug 17 | . . . . . . . 2 1 14 . . . . . . Terrain Destroyed 186 | . . . . . . . 2 1 16 11 . 47 . 7 102 Melee 17 | . . . . . . . 2 1 14 . . . . . . Projectile 74 | . . . . . . . . . 2 11 . 2 . 7 52 AOE 95 | . . . . . . . . . . . . 45 . . 50 Terrain Rammed . | . . . . . . . . . . . . . . . . Walls Destroyed . | . . . . . . . . . . . . . . . . Machines Disabled . | . . . . . . . . . . . . . . . . Actions | -11 -10 -10 -9 -9 -9 -8 -8 -7 -6 -6 -6 -5 -5 -5 -4 --------- Run | Yrd Mat Min Mat Min Exi Min Mat Fac Fac Low Low Fac Ext Cet Fac Total 9114 | 64 500 354 456 124 1093 203 1074 164 970 1235 86 1016 447 260 1068 Wait 1245 | . 66 23 18 16 . . 300 9 193 190 22 269 62 1 76 Move 7138 | 51 368 307 395 106 1089 203 652 150 690 963 55 654 360 230 865 Hop . | . . . . . . . . . . . . . . . . Pick Up 122 | 7 16 7 5 1 1 . 15 2 9 14 2 17 6 4 16 Fast Attach 50 | 5 3 . 3 . . . 5 . 1 4 1 6 4 5 13 Attach 82 | 1 3 . 1 . . . 7 2 10 13 1 9 11 2 22 Detach 18 | . 1 . . . . . 2 . . 1 1 4 2 3 4 Swap 33 | . 5 3 7 . 1 . 8 . 1 . 1 2 2 1 2 Drop 95 | . 11 10 9 1 1 . 22 . 1 . 3 16 . 2 19 Fire 220 | . 27 4 18 . . . 27 . 16 32 . 39 . 12 45 Melee 95 | . . . . . . . 35 1 49 10 . . . . . Ram 7 | . . . . . . . . . . 4 . . . . 3 Kick 1 | . . . . . . . 1 . . . . . . . . Crush 7 | . . . . . . . . . . 4 . . . . 3 Escape Stasis . | . . . . . . . . . . . . . . . . Rewire 1 | . . . . . 1 . . . . . . . . . . Trap . | . . . . . . . . . . . . . . . . Miscellaneous . | . . . . . . . . . . . . . . . . Route ------- -11/Scrapyard -10/Materials (discovered 2 exits: *Min x2) -10/Mines -9/Materials (discovered 2 exits: *Mat / [*Min]) -9/Mines -9/Exiles -8/Mines -8/Materials -7/Factory -6/Factory -6/Lower Caves -6/Lower Caves -5/Factory (discovered 3 exits: Upp x2 / [*Ext]) -5/Extension (discovered 2 exits: *Fac / *Cet) -5/Cetus -4/Factory History --------- Turn | Location | Event 12 | -11/Scrapyard | Discovered new exit (range 16) 58 | -11/Scrapyard | Entered Materials 208 | -10/Materials | Discovered new exit (range 16) 306 | -10/Materials | Build established: Mutant 473 | -10/Materials | Discovered new exit (range 14) 631 | -10/Materials | Entered Mines 634 | -10/Mines | Met a Derelict shopkeep closing up shop 797 | -10/Mines | Learned 2 Materials zone layouts 1001 | -10/Mines | Found the Drone Emporium 1014 | -10/Mines | Found Prototype Device 1162 | -10/Mines | Discovered new exit (range 12) 1217 | -10/Mines | Assisted by bots powering up and referring to "LRC-V3" 1263 | -10/Mines | Entered Materials 1263 | -9/Materials | Accompanied by 5 allies 1263 | -9/Materials | Evolved 2 slots: Propulsion x1, Weapon x1 1268 | -9/Materials | Led the pair of lost Derelicts to an unsafe place 1492 | -9/Materials | Discovered new exit (range 8) 1958 | -9/Materials | Build established: Scavenger-Tank 2072 | -9/Materials | Discovered new exit (range 7) 2112 | -9/Materials | Entered Mines 2112 | -9/Mines | Accompanied by 5 allies 2160 | -9/Mines | Assembled infested the area 2201 | -9/Mines | Met a Derelict bent on vengeance 2226 | -9/Mines | Lost 5 allies 2261 | -9/Mines | Found a damaged Exp. Sensor Array with a note attached 2266 | -9/Mines | Found Prototype Device 2303 | -9/Mines | Met 8R-AWN 2324 | -9/Mines | Discovered new exit (range 5) 2331 | -9/Mines | Entered Exiles 2377 | -9/Exiles | Welcomed by 8R-AWN 2409 | -9/Exiles | Met EX-HEX 2508 | -9/Exiles | Met EX-DEC 2604 | -9/Exiles | Visited The Gauntlet 2907 | -9/Exiles | Learned location of Zion (-7) 2955 | -9/Exiles | Met EX-BIN 3540 | -9/Exiles | Discovered new exit (range 15) 4117 | -9/Exiles | Aligned with FarCom system 4118 | -9/Exiles | Given EX-Vault access code 4170 | -9/Exiles | Opened EX-Vault 4193 | -9/Exiles | Found Prototype Slashing Weapon 4258 | -9/Exiles | Warned to stay clear of 0b10 Research branches 4405 | -9/Exiles | Left Exiles lab with Longsword +1 4405 | -9/Exiles | Entered Mines 4707 | -8/Mines | Build established: Scavenger-Skirmisher 4746 | -8/Mines | Discovered new exit (range 8) 4791 | -8/Mines | Entered Materials 4791 | -8/Materials | Evolved 2 slots: Propulsion x1, Utility x1 5101 | -8/Materials | Build established: Scavenger-Tank 5260 | -8/Materials | Garrison activated, responded to threat 5375 | -8/Materials | Identified Longsword +1 5400 | -8/Materials | Identified Sensor Drone Bay 5401 | -8/Materials | Identified Exp. Sensor Array 5707 | -8/Materials | Build established: Scavenger-Assassin 6029 | -8/Materials | Discovered new exit (range 4) 6033 | -8/Materials | Build established: Mutant 6196 | -8/Materials | Entered Factory 6196 | -7/Factory | Evolved 2 slots: Utility x2 6447 | -7/Factory | Discovered new exit (range 8) 6466 | -7/Factory | Entered another Factory area 6466 | -6/Factory | Evolved 2 slots: Power x1, Utility x1 6526 | -6/Factory | Build established: Assassin 7628 | -6/Factory | Lost 4 parts (1p1n1u1w) 7987 | -6/Factory | Discovered new exit (range 6) 8006 | -6/Factory | Entered Lower Caves 8040 | -6/Lower Caves | Attracted the attention of an 0b10 base 8199 | -6/Lower Caves | Lost 15 parts (4p5n3u3w) 8524 | -6/Lower Caves | Build established: Scavenger-Gunner 8740 | -6/Lower Caves | Attracted the attention of an 0b10 checkpoint 8789 | -6/Lower Caves | Ambushed by wild Derelicts 9060 | -6/Lower Caves | Identified exit to Lower Caves 9432 | -6/Lower Caves | Core integrity fell below 50% 9503 | -6/Lower Caves | Entered another Lower Caves area 9515 | -6/Lower Caves | Discovered new exit (range 16) 9544 | -6/Lower Caves | Encountered a Warlord checkpoint 9597 | -6/Lower Caves | Entered Factory 9597 | -5/Factory | Evolved 2 slots: Utility x1, Weapon x1 9598 | -5/Factory | Identified exit to Upper Caves 9891 | -5/Factory | Build established: Scavenger-Skirmisher 9993 | -5/Factory | Lost 3 parts (2u1w) 10226 | -5/Factory | Destroyed 7 combat bots 10750 | -5/Factory | Discovered new exit (range 13) 10774 | -5/Factory | Entered Extension 10882 | -5/Extension | Spotted B-75 Beast 11056 | -5/Extension | Spotted B-75 Beast 11082 | -5/Extension | Core integrity fell below 50% 11125 | -5/Extension | Lost 12 parts (2p4n3u3w) 11167 | -5/Extension | Discovered new exit (range 16) 11168 | -5/Extension | Discovered new exit (range 15) 11291 | -5/Extension | Entered Cetus 11319 | -5/Cetus | Spotted Cetus Guard 11319 | -5/Cetus | Spotted Cetus Guard 11334 | -5/Cetus | Spotted Cetus Guard 11334 | -5/Cetus | Spotted Cetus Guard 11340 | -5/Cetus | Destroyed Cetus Guard 11366 | -5/Cetus | Destroyed Cetus Guard 11383 | -5/Cetus | Lost 3 parts (1p1n1u) 11383 | -5/Cetus | Destroyed Cetus Guard 11703 | -5/Cetus | Build established: Scavenger-Tank 11824 | -5/Cetus | Discovered new exit (range 16) 11858 | -5/Cetus | Entered Factory 11858 | -4/Factory | Evolved 2 slots: Propulsion x1, Utility x1 13246 | -4/Factory | Lost 3 parts (1n1u1w) 13280 | -4/Factory | Spotted B-86 Titan 13311 | -4/Factory | Spotted B-86 Titan 13446 | -4/Factory | Lost 15 parts (3p3n6u3w) 13517 | -4/Factory | Released all parts (7) 13538 | -4/Factory | Core integrity fell below 50% 13543 | -4/Factory | Released all parts (1) 13547 | -4/Factory | Lost 6 parts (2p1n1u2w) 13560 | -4/Factory | Core integrity fell below 20% 13593 | -4/Factory | Destroyed by G-67 Veteran with Plasma Rifle Last Messages --------------- 13546_ Slammed into G-67 Veteran. 13546_ Destabilizing: System corrupted (+1). 13548_ Slammed into T-07 Excavator. 13549_ Slammed into K-01 Serf. 13553_ Penetrated by Slug. 13555_ Nuclear Reactor explodes. 13555_ T-07 Excavator destroyed. 13556_ Slug penetrates Wall. 13559_ S-27 Virus destroyed. 13559_ Penetrated by Slug. 13559_ Slug penetrates Wall. 13559_ Penetrated by Slug. 13559_ Slug penetrates Wall. 13560_ Nuclear Reactor explodes. 13560_ S-27 Virus destroyed. 13581_ Penetrated by Slug. 13582_ Acquired Imp. Focal Shield. 13584_ Critical hit (Burn: +37). 13584_ Penetrated by Slug. 13586_ Slug penetrates Power Conduit. Map ----- +----------------------------------------------------+ | ??????????????????????????????????????? ?????????? | | ??????????????????????????????????????# #????????? | | ??????????????????????????????????????# +????????? | | ??????????????????????????????????????# #????????? | | ??????????????????????????????????????# #????"???? | | ??????????????????????????????????????# #?????""?? | | ??????????????????????????????????????# #?????? ? | | ??????????????????????????????????????# #######+#+ | | ??????????????????????????????? ????+ | | ??????????????????????????????? ""??# ##### | | ?????????????????????????????? """ # #???# | | ????????????????????g????????? """ + #???# | | ?????????????????? ??????????# # #???# | | ?????????????????# g?????????#######??# #???###### | | ?????????????????# ?g????????????????#g#???????# | | ?????????????????# ?????????????????# #???????# | | ?????????????????# ??????????###????# #???????# | | ?????????????????# ???####### ###### #???????# | | ?????????????????# ???# # #???????# | | ?????????????????# t ??# " " # #???????# | | ???????????????### ??# "G" " + #???????# | | ???????????????# ?# " " " Y # #???????# | | ???????????##### ?# " # #???????## | | ?????????? # " *# #????????? | | ?????????? g # " ! ! # #????????? | | ?????????? g H @ " ! # #????????? | | ??????????g g # " !! # ????????? | | ?????????? # " # ????????? | | ???????????##### ?# # ????????? | | ???????????????# ?# # ????????? | | ???????????????#####+##??#################???????? | | ?????????????????????????????????????????????????? | | ?????????????????????????????????????????????????? | | ?????????????????????????????????????????????????? | | ?????????????????????????????????????????????????? | | ?????????????????????????????????????????????????? | | ?????????????????????????????????????????????????? | | ?????????????????????????????????????????????????? | | ?????????????????????????????????????????????????? | | ?????????????????????????????????????????????????? | | ?????????????????????????????????????????????????? | | ?????????????????????????????????????????????????? | | ?????????????????????????????????????????????????? | | ?????????????????????????????????????????????????? | | ?????????????????????????????????????????????????? | | ?????????????????????????????????????????????????? | | | | | | | | | +----------------------------------------------------+ Best States ------------- Heat Dissipation 90 Coolant Potential 65 Energy Generation 38 Energy Capacity 560 Matter Stores 450 Matter Capacity 450 Sight Range 16 Robot Scan Range 20 Terrain Scan Density 210 ECM Strength 2 Corruption Block 15 Armor Coverage 825 Resistance: KI 25 Resistance: TH 25 Resistance: EM 15 Propulsion Shielding 33 Weapon Shielding 66 Evasion (%) 55 Melee Accuracy 5 Target Analysis 5 Core Analysis 6 Recoil Reduction 4 Energy Filtering 30 Particle Charging 20 Item Schematics ----------------- None Robot Schematics ------------------ None Fabricated ------------ Nothing Alien Tech Used ----------------- None Achievements -------------- None Challenges ------------ None Game ------ Seed CompactImprinterFlail Manual? 0 Play Time 02:49:00 Cumulative 31.9 hours Start 2025.02.28 @ 20:33:38 End 2025.03.04 @ 19:49:24 Sessions 5 Manual Loads 0 Difficulty Rogue Special Mode None Game No. 26 Rogue 26 Adventurer 0 Explorer 0 Win Type - Total 0 Types 0/0/0/0/0/0/0/0/0 Lore% 12 Gallery% 33 Achievement% 25 Wizard Run 0 Options --------- Layout 0 ASCII 0 Keyboard 1 Movement Numpad Keybinds 0 Fullscreen 0 Font 16/SmallcapsGlow Map View 88x55 Zoom Use 0% Tactical HUD 1 Map Filters NONE Filters NONE Steam 1 RUN: d955036f-a74b-4a5c-90ff-2a44e1a98cd4